bitfinex-derivatives/quotes_SOLF0:USTF0_20250831
["timestamp","ask_amount","ask_price","bid_price","bid_amount"]
[1756675249220,118.5,205.09,205.04,4.08180327]
[1756675249410,118.5,205.09,205.05,7.86]
[1756675250114,118.5,205.09,205.04,4.08180327]
[1756675250819,118.5,205.09,205.03,4.08180327]
[1756675251215,118.5,205.09,205.04,7.86]
[1756675251820,118.5,205.08,205.03,4.08180327]
[1756675252020,118.5,205.08,205.04,7.86]
[1756675252220,118.5,205.08,205.03,4.08180327]
[1756675252421,118.5,205.08,205.04,7.86]
[1756675252716,118.5,205.08,205.03,4.08180327]
[1756675252918,118.5,205.08,205.04,7.86]
[1756675253518,118.5,205.08,205.03,4.08180327]
[1756675254021,118.5,205.08,205.04,7.86]
[1756675254219,118.5,205.08,205.03,4.08180327]
[1756675255022,118.5,205.08,205.04,7.86]
[1756675255223,118.5,205.08,205.03,4.08180327]
[1756675255424,118.5,205.08,205.04,7.86]
[1756675255620,118.5,205.08,205.03,4.08180327]
[1756675255818,118.5,205.09,205.03,4.08180327]
[1756675256119,118.5,205.09,205.04,7.86]
[1756675256320,118.5,205.09,205.03,4.08180327]
[1756675256520,118.5,205.09,205.04,7.86]
[1756675256722,118.5,205.09,205.03,4.08180327]
[1756675257320,118.5,205.09,205.04,7.86]
[1756675258723,118.5,205.09,205.03,4.08180327]
[1756675258925,118.5,205.09,205.03,11.94180327]
[1756675259931,118.5,205.09,205.05,1.72626392]
[1756675261026,118.5,205.09,205.05,9.58626392]
[1756675261424,118.5,205.09,205.06,7.86]
[1756675261724,106.49139003,205.19,205.06,7.86]
[1756675261924,1.72626392,205.12,205.06,7.86]
[1756675262124,118.48,205.11,205.06,7.86]
[1756675262428,1.72626392,205.12,205.05,9.58626392]
[1756675262622,12.38,205.11,205.05,9.58626392]
[1756675263322,1.72626392,205.1,205.03,4.08180327]
[1756675263521,1.72626392,205.1,205.04,1.72626392]
[1756675268527,1.72626392,205.1,205.04,9.49626392]
[1756675271324,14.10626392,205.11,205.04,9.49626392]
[1756675275232,24.06,205.15,205.08,1.72626392]
[1756675275431,1.72626392,205.14,205.08,1.72626392]
[1756675276232,24.06,205.15,205.1,1.72626392]
[1756675276736,24.06,205.15,205.07,7.77]
[1756675276935,24.06,205.15,205.1,1.72626392]
[1756675278836,24.06,205.15,205.1,9.49626392]
[1756675281233,24.06,205.15,205.11,7.77]
[1756675284337,24.06,205.15,205.1,1.72626392]
[1756675284541,24.06,205.15,205.11,7.77]
[1756675297145,24.06,205.15,205.1,1.72626392]
[1756675297345,24.06,205.15,205.11,7.77]
[1756675297941,24.06,205.15,205.1,1.72626392]
[1756675298147,24.06,205.15,205.11,7.77]
[1756675298842,24.06,205.15,205.12,4.34239136]
[1756675299038,24.06,205.15,205.13,4.34239136]
[1756675299341,24.06,205.15,205.14,4.34239136]
[1756675305158,24.06,205.15,205.11,7.77]
[1756675305455,24.06,205.15,205.12,4.34278539]
[1756675305651,24.06,205.15,205.13,4.34278539]
[1756675305851,24.06,205.15,205.14,4.34278539]
[1756675306053,24.06,205.15,205.14,4.34281414]
[1756675308653,24.06,205.15,205.11,7.77]
[1756675313159,24.06,205.15,205.1,1.72626392]
[1756675313352,24.06,205.15,205.11,7.77]
[1756675313655,24.06,205.15,205.1,1.72626392]
[1756675313855,24.06,205.15,205.11,7.77]
[1756675314055,24.06,205.15,205.1,1.72626392]
[1756675314251,24.06,205.15,205.11,7.77]
[1756675314457,24.06,205.15,205.1,1.72626392]
[1756675314656,24.06,205.15,205.11,7.77]
[1756675314857,24.06,205.15,205.1,1.72626392]
[1756675316060,24.06,205.15,205.11,7.77]
[1756675316260,24.06,205.15,205.1,1.72626392]
[1756675316762,24.06,205.15,205.13,7.77]
[1756675317961,24.06,205.15,205.12,1.72626392]
[1756675318161,24.06,205.15,205.13,7.77]
[1756675319057,24.06,205.15,205.12,1.72626392]
[1756675319264,24.06,205.15,205.13,7.77]
[1756675321858,24.06,205.15,205.12,9.49626392]
[1756675323269,24.06,205.15,205.13,7.77]
[1756675324367,24.06,205.15,205.11,4.08180327]
[1756675324665,24.06,205.15,205.11,11.85180327]
[1756675324865,24.06,205.15,205.11,4.08180327]
[1756675325470,1.72626392,205.14,205.1,4.08180327]
[1756675325969,1.72626392,205.14,205.09,4.08180327]
[1756675326172,1.72626392,205.12,205.09,4.08180327]
[1756675326370,1.72626392,205.12,205.06,4.08180327]
[1756675327672,1.72626392,205.08,205.01,4.08180327]
[1756675327969,1.72626392,205.04,205.0,11.85180327]
[1756675328160,6.78626392,205.04,205.0,11.85180327]
[1756675328363,6.78626392,205.04,205.0,7.77]
[1756675328772,6.78626392,205.04,204.98,4.08180327]
[1756675329472,6.78626392,205.04,204.97,13.00806719]
[1756675331173,6.78626392,205.04,204.97,8.92626392]
[1756675331967,1.72626392,205.02,204.95,5.80806719]
[1756675332168,1.72626392,205.02,204.95,1.72626392]
[1756675332374,1.72626392,205.02,204.97,1.72626392]
[1756675332579,1.72626392,205.02,204.98,7.2]
[1756675333176,6.78626392,205.04,204.98,7.2]
[1756675333673,327.72,205.1,205.01,1.72626392]
[1756675333866,327.72,205.1,205.06,7.2]
[1756675334071,118.38,205.09,205.06,7.2]
[1756675335074,327.72,205.1,205.07,1.72626392]
[1756675335471,327.72,205.1,205.08,7.2]
[1756675335873,1.72626392,205.14,205.09,8.92626392]
[1756675336074,118.38,205.13,205.1,7.2]
[1756675336274,2.6962537,205.18,205.1,7.2]
[1756675336475,118.4,205.17,205.1,7.2]
[1756675337479,2.6962537,205.18,205.1,7.2]
[1756675337677,118.4,205.17,205.1,7.2]
[1756675337976,118.4,205.17,205.07,7.2]
[1756675343882,2.6962537,205.16,205.07,7.2]
[1756675348786,2.6962537,205.13,205.07,7.2]
[1756675352889,33.22,205.12,205.07,7.2]
[1756675355288,44.54,205.14,205.07,7.2]
[1756675357488,2.6962537,205.16,205.07,7.2]
[1756675357690,118.36,205.15,205.07,7.2]
[1756675360591,118.36,205.14,205.07,7.2]
[1756675361995,1.72559333,205.15,205.09,1.72559333]
[1756675362194,118.36,205.14,205.1,7.84]
[1756675363697,1.72559333,205.15,205.1,7.84]
[1756675363994,118.36,205.14,205.1,7.84]
[1756675365199,1.72559333,205.13,205.07,1.72559333]
[1756675365400,1.72559333,205.13,205.07,9.56559333]
[1756675373701,118.36,205.12,205.08,7.84]
[1756675374002,118.36,205.12,205.07,1.72559333]
[1756675374401,118.36,205.12,205.08,7.84]
[1756675375205,118.36,205.12,205.07,1.72559333]
[1756675375699,118.36,205.12,205.08,7.84]
[1756675376105,1.72559333,205.13,205.07,9.56559333]
[1756675376306,1.72559333,205.11,205.05,13.64073336]
[1756675376507,8.92,205.1,205.06,7.84]
[1756675379203,1.72559333,205.09,205.04,4.07514003]
[1756675379512,1.72559333,205.09,205.04,7.84]
[1756675380507,8.18594528,205.19,205.0,4.07514003]
[1756675380508,1.72559333,205.05,205.0,4.07514003]
[1756675380811,1.72559333,205.03,204.99,4.07514003]
[1756675381005,1.72559333,205.03,205.0,7.84]
[1756675381409,12.08559333,205.03,205.0,7.84]
[1756675382502,12.08559333,205.03,204.97,4.07514003]
[1756675382708,12.08559333,205.03,204.96,11.91514003]
[1756675383108,12.08559333,205.03,204.96,7.84]
[1756675383909,1.72559333,205.07,205.01,1.72559333]
[1756675384111,5.22,205.06,205.0,7.84]
[1756675384312,10.0,205.06,205.0,7.84]
[1756675386519,2.69791655,205.11,205.0,7.84]
[1756675386719,2.69791655,205.11,205.02,2.69791655]
[1756675386908,5.5,205.1,205.03,7.84]
[1756675387516,5.45729685,205.18,205.05,2.69791655]
[1756675387719,17.62,205.17,205.06,7.84]
[1756675388021,17.62,205.17,205.08,7.62]
[1756675390826,0.84862525,205.2,205.08,7.62]
[1756675391127,2.69791655,205.18,205.1,7.62]
[1756675394240,2.69791655,205.18,205.06,6.77305658]
[1756675394540,2.69791655,205.15,205.06,7.62]
[1756675400340,13.34,205.14,205.06,7.62]
[1756675400747,2.69791655,205.15,205.06,7.62]
[1756675400949,13.3,205.14,205.06,7.62]
[1756675402252,28.3,205.13,205.06,7.62]
[1756675403950,41.64,205.13,205.06,7.62]
[1756675407547,53.92,205.13,205.06,7.62]
[1756675409549,65.42,205.14,205.06,7.62]
[1756675413154,2.69791655,205.18,205.06,7.62]
[1756675413350,76.92,205.14,205.06,10.31791655]
[1756675413550,76.92,205.14,205.07,7.62]
[1756675414054,76.92,205.14,205.08,1.72561467]
[1756675416059,76.92,205.14,205.07,7.62]
[1756675417961,85.1,205.16,205.07,7.62]
[1756675418162,85.1,205.16,205.07,10.31634993]
[1756675418459,85.1,205.16,205.08,7.83]
[1756675423262,118.36,205.15,205.08,7.83]
[1756675424563,2.69634993,205.18,205.08,7.83]
[1756675424762,118.36,205.16,205.08,7.83]
[1756675424964,118.36,205.17,205.08,7.83]
[1756675425159,118.36,205.17,205.08,10.52634993]
[1756675425359,118.36,205.17,205.08,7.83]
[1756675428065,121.05634993,205.17,205.08,7.83]
[1756675428365,118.36,205.16,205.08,7.83]
[1756675431365,118.36,205.16,205.08,11.91499206]
[1756675431859,2.69634993,205.17,205.08,11.91499206]
[1756675432061,118.36,205.15,205.08,11.91499206]
[1756675438079,120.06557338,205.15,205.09,1.72557338]
[1756675438678,1.72557338,205.15,205.09,1.72557338]
[1756675438877,120.06557338,205.15,205.09,1.72557338]
[1756675442682,120.06557338,205.15,205.08,11.91499206]
[1756675442884,120.06557338,205.15,205.08,4.08499206]
[1756675442885,1.72557338,205.13,205.08,4.08499206]
[1756675443085,1.72557338,205.11,205.07,4.08499206]
[1756675443382,1.72557338,205.09,205.07,4.08499206]
[1756675443684,118.34,205.08,205.03,4.08499206]
[1756675443878,118.34,205.08,205.02,1.72557338]
[1756675443879,1.72557338,205.07,205.02,4.08499206]
[1756675444283,1.72557338,205.07,205.02,11.91499206]
[1756675445280,1.72557338,205.07,205.02,7.83]
[1756675445681,1.72557338,205.07,205.01,11.91499206]
[1756675447883,1.72557338,205.05,205.01,7.83]
[1756675448187,1.72557338,205.05,205.0,1.72557338]
[1756675448384,1.72557338,205.05,205.01,7.32]
[1756675448581,1.72557338,205.05,205.0,1.72557338]
[1756675448889,1.72557338,205.05,205.01,7.32]
[1756675449082,1.72557338,205.05,205.0,1.72557338]
[1756675449281,120.08557338,205.07,205.01,7.32]
[1756675451585,1.72557338,205.05,204.98,13.13056544]
[1756675454192,1.72557338,205.05,204.98,9.04557338]
[1756675457095,118.36,205.07,205.0,1.72557338]
[1756675457293,1.72557338,205.06,205.0,9.04557338]
[1756675459396,10.62557338,205.06,205.0,9.04557338]
[1756675459995,1.72557338,205.06,205.0,9.04557338]
[1756675462496,10.62557338,205.06,205.0,9.04557338]
[1756675464797,1.72557338,205.06,205.0,9.04557338]
[1756675465200,1.72557338,205.04,205.0,7.32]
[1756675465393,1.72557338,205.02,205.0,7.32]
[1756675465589,1.72557338,205.02,204.97,7.32]
[1756675466493,1.72557338,205.02,204.96,69.89888022]
[1756675466993,1.72557338,205.02,204.97,7.32]
[1756675467398,1.72557338,205.02,204.96,69.89888022]
[1756675467796,1.72557338,205.02,204.97,7.32]
[1756675468399,1.72557338,205.02,204.96,69.89888022]
[1756675468896,1.72557338,205.02,204.97,7.32]
[1756675469099,1.72557338,205.02,204.96,69.89888022]
[1756675469890,1.72557338,205.02,204.97,7.32]
[1756675470398,1.72557338,205.02,204.96,69.89888022]
[1756675470897,1.72557338,205.02,204.97,7.32]
[1756675471098,1.72557338,205.02,204.96,69.89888022]
[1756675471296,1.72557338,205.02,204.97,7.32]
[1756675472101,1.72557338,205.02,204.96,69.89888022]
[1756675472302,1.72557338,205.02,204.97,7.32]
[1756675472705,1.72557338,205.02,204.96,69.89888022]
[1756675473702,1.72557338,205.02,204.97,7.32]
[1756675473904,1.72557338,205.02,204.96,69.89888022]
[1756675474501,1.72557338,205.02,204.97,7.32]
[1756675475312,1.72557338,205.02,204.96,69.89888022]
[1756675475502,1.72557338,205.02,204.97,7.32]
[1756675475701,1.72557338,205.02,204.96,69.89888022]
[1756675476203,1.72557338,205.02,204.97,7.32]
[1756675477707,1.72557338,205.02,204.96,69.89888022]
[1756675477903,1.72557338,205.02,204.97,7.64]
[1756675478114,1.72557338,205.02,204.96,69.89888022]
[1756675478403,1.72557338,205.02,204.97,7.64]
[1756675478602,1.72557338,205.02,204.96,69.89888022]
[1756675479404,1.72557338,205.02,204.97,7.64]
[1756675479606,1.72557338,205.02,204.96,69.89888022]
[1756675480005,1.72557338,205.02,204.97,7.64]
[1756675480405,1.72557338,205.02,204.96,69.89888022]
[1756675480610,1.72557338,205.02,204.97,7.64]
[1756675484004,1.72557338,205.0,204.94,5.81056544]
[1756675484209,43.92557338,205.04,204.98,1.72557338]
[1756675484510,42.2,205.04,204.99,7.64]
[1756675484713,49.22,205.05,205.02,7.64]
[1756675484912,49.22,205.07,205.02,7.64]
[1756675485613,1.72557338,205.08,205.02,7.64]
[1756675485815,68.08557338,205.08,205.02,7.64]
[1756675490813,1.72557338,205.08,205.02,7.64]
[1756675499225,1.72557338,205.06,205.01,1.72557338]
[1756675499418,1.72557338,205.06,205.02,7.64]
[1756675499618,1.72557338,205.06,205.0,4.08499206]
[1756675499819,1.72557338,205.06,205.0,7.64]
[1756675500128,1.72557338,205.02,204.97,7.64]
[1756675500325,1.72557338,204.98,204.96,7.64]
[1756675500624,1.72557338,204.98,204.94,7.64]
[1756675501022,1.72557338,204.98,204.93,1.72557338]
[1756675501222,1.72557338,204.98,204.94,7.64]
[1756675501423,1.72557338,204.98,204.93,1.72557338]
[1756675502020,1.72557338,204.98,204.93,7.64]
[1756675503423,1.72557338,204.98,204.92,5.82545454]
[1756675503622,1.72557338,204.98,204.93,7.64]
[1756675504229,1.72557338,204.98,204.92,5.82545454]
[1756675504628,1.72557338,204.96,204.92,7.64]
[1756675504822,1.72557338,204.96,204.91,7.64]
[1756675505325,5.45729685,205.05,204.95,7.64]
[1756675505326,12.58557338,205.0,204.95,7.64]
[1756675505525,10.86,205.0,204.95,7.64]
[1756675506028,1.72557338,205.02,204.95,7.64]
[1756675506232,19.5,205.01,204.95,7.64]
[1756675506526,1.72557338,205.02,204.95,7.64]
[1756675506727,90.10557338,205.02,204.96,1.72557338]
[1756675507227,90.10557338,205.02,204.95,1.72557338]
[1756675507930,88.38,205.02,204.92,6.79965419]
[1756675508130,88.38,205.02,204.93,7.27]
[1756675522146,2.69977303,205.04,204.93,7.27]
[1756675522340,93.98,205.03,204.93,7.27]
[1756675527349,2.69977303,205.04,204.93,7.27]
[1756675527546,118.38,205.03,204.93,7.27]
[1756675530054,1.7279278,205.01,204.95,7.27]
[1756675535754,118.38,205.03,204.95,7.27]
[1756675535956,1.7279278,205.01,204.95,7.27]
[1756675536355,118.38,205.03,204.95,7.27]
[1756675536553,1.7279278,205.01,204.95,7.27]
[1756675537753,1.7279278,205.03,204.96,1.7279278]
[1756675537958,118.38,205.02,204.97,7.85]
[1756675538561,118.38,205.02,204.96,9.5779278]
[1756675540862,1.7279278,205.01,204.96,9.5779278]
[1756675541064,1.7279278,205.01,204.97,7.85]
[1756675543564,1.7279278,205.01,204.96,1.7279278]
[1756675543960,1.7279278,205.01,204.97,7.85]
[1756675544165,1.7279278,205.01,204.96,1.7279278]
[1756675544363,1.7279278,205.01,204.97,7.85]
[1756675544564,1.7279278,205.01,204.96,1.7279278]
[1756675544965,1.7279278,205.01,204.97,7.85]
[1756675545259,1.7279278,205.01,204.96,1.7279278]
[1756675545657,1.7279278,205.01,204.97,7.85]
[1756675546062,1.7279278,205.01,204.96,1.7279278]
[1756675546462,1.7279278,205.01,204.97,7.85]
[1756675546764,1.7279278,205.01,204.96,1.7279278]
[1756675547465,1.7279278,205.01,204.97,7.85]
[1756675547965,1.7279278,205.01,204.96,1.7279278]
[1756675548163,1.7279278,205.01,204.97,7.85]
[1756675548366,16.28,205.0,204.96,1.7279278]
[1756675548562,16.28,205.0,204.97,7.85]
[1756675549065,16.28,205.0,204.96,1.7279278]
[1756675549364,16.28,205.0,204.97,7.85]
[1756675549563,16.28,205.0,204.96,1.7279278]
[1756675550061,16.28,205.0,204.97,7.85]
[1756675550268,16.28,205.0,204.96,1.7279278]
[1756675550458,16.28,205.0,204.97,7.85]
[1756675551270,16.28,205.0,204.96,1.7279278]
[1756675551470,16.28,205.0,204.97,7.85]
[1756675552174,16.28,205.0,204.96,1.7279278]
[1756675552757,16.28,205.0,204.97,7.85]
[1756675553870,16.28,205.0,204.96,1.7279278]
[1756675554062,16.28,205.0,204.97,7.85]
[1756675554770,16.28,205.0,204.96,1.7279278]
[1756675554968,16.28,205.0,204.97,7.85]
[1756675555963,1.7279278,205.01,204.97,7.85]
[1756675556273,46.5879278,205.04,204.98,1.7279278]
[1756675556472,46.5879278,205.04,204.99,7.85]
[1756675557468,423.41543844,205.09,205.0,1.7279278]
[1756675557672,1.7279278,205.07,205.01,7.85]
[1756675558772,118.36,205.06,205.01,7.85]
[1756675559675,118.36,205.06,205.0,1.7279278]
[1756675559873,120.0879278,205.06,205.01,7.85]
[1756675560074,120.0879278,205.06,205.0,1.7279278]
[1756675561166,120.0879278,205.06,205.01,7.85]
[1756675561772,120.0879278,205.06,205.0,1.7279278]
[1756675561980,120.0879278,205.06,205.01,7.85]
[1756675562578,120.0879278,205.06,205.0,1.7279278]
[1756675562778,120.0879278,205.06,205.01,7.85]
[1756675563278,120.0879278,205.06,205.0,1.7279278]
[1756675563780,120.0879278,205.06,205.01,7.85]
[1756675563980,118.36,205.05,205.0,1.7279278]
[1756675564284,118.36,205.05,205.01,7.85]
[1756675565079,118.36,205.05,205.0,1.7279278]
[1756675565481,118.36,205.05,205.01,7.85]
[1756675565779,118.36,205.05,205.0,1.7279278]
[1756675566582,118.36,205.05,205.01,7.85]
[1756675566784,118.36,205.05,205.0,1.7279278]
[1756675567075,118.36,205.05,205.01,7.85]
[1756675567681,118.36,205.05,205.0,1.7279278]
[1756675567883,118.36,205.05,205.01,7.85]
[1756675569078,1.7279278,205.06,205.02,4.3499169]
[1756675569382,118.34,205.05,205.03,4.3499169]
[1756675569578,118.34,205.05,205.04,4.3499169]
[1756675571081,118.34,205.05,205.04,4.34935765]
[1756675571784,118.34,205.05,205.04,4.34916079]
[1756675577089,118.34,205.05,205.02,1.7279278]
[1756675577385,118.34,205.05,205.02,9.6779278]
[1756675578790,118.32,205.04,205.02,9.6779278]
[1756675584995,118.3,205.04,205.02,9.6779278]
[1756675588802,118.3,205.04,205.02,1.7279278]
[1756675594106,1.7279278,205.07,205.02,1.7279278]
[1756675594306,118.3,205.06,205.02,1.7279278]
[1756675595106,1.7279278,205.07,205.02,1.7279278]
[1756675595307,118.3,205.06,205.02,1.7279278]
[1756675599509,118.3,205.06,205.02,9.3279278]
[1756675599710,118.3,205.06,205.02,1.7279278]
[1756675604314,1.7279278,205.04,204.99,4.09988116]
[1756675605313,1.7279278,205.04,204.99,5.82780896]
[1756675607915,1.7279278,205.04,204.99,13.42780896]
[1756675608914,1.7279278,205.04,204.98,4.09988116]
[1756675609313,1.7279278,205.04,204.97,4.09988116]
[1756675609514,1.7279278,205.02,204.97,11.69988116]
[1756675609715,118.28,205.01,204.97,11.69988116]
[1756675610514,118.28,205.01,204.97,4.09988116]
[1756675611010,118.28,205.0,204.96,11.69988116]
[1756675613415,118.28,205.0,204.96,7.6]
[1756675614818,118.28,205.0,204.96,9.3279278]
[1756675615116,1.7279278,205.03,204.96,9.3279278]
[1756675615320,116.22,205.01,204.96,9.3279278]
[1756675616022,100.97273529,205.09,204.98,1.7279278]
[1756675616322,1.7279278,205.05,204.98,9.3279278]
[1756675616821,95.51543844,205.09,205.0,7.6]
[1756675617019,95.51543844,205.09,205.02,1.7279278]
[1756675617020,102.86,205.08,205.02,1.7279278]
[1756675619421,1.7279278,205.07,205.02,1.7279278]
[1756675620326,102.86,205.08,205.02,1.7279278]
[1756675620524,1.7279278,205.07,205.02,1.7279278]
[1756675621325,1.7279278,205.07,205.02,9.3279278]
[1756675625429,1.7279278,205.07,205.03,7.6]
[1756675625825,1.7279278,205.05,205.01,7.6]
[1756675626518,118.26,205.04,205.01,7.6]
[1756675628830,118.26,205.04,205.0,7.46]
[1756675629030,118.26,205.03,205.01,1.7279278]
[1756675629230,118.26,205.03,205.02,7.46]
[1756675631635,97.24336624,205.09,205.02,7.46]
[1756675631934,118.26,205.08,205.02,7.46]
[1756675633038,118.24,205.07,205.04,7.46]
[1756675633338,118.24,205.07,205.03,1.7279278]
[1756675634237,118.24,205.07,205.04,7.46]
[1756675635436,118.24,205.07,205.03,1.7279278]
[1756675635635,118.24,205.07,205.03,9.1879278]
[1756675638542,118.24,205.07,205.04,7.46]
[1756675643043,118.24,205.07,205.03,9.1879278]
[1756675653853,118.24,205.07,205.01,1.7279278]
[1756675654455,119.9679278,205.07,205.01,1.7279278]
[1756675654655,1.7279278,205.05,204.97,4.09988116]
[1756675654854,1.7279278,205.03,204.97,1.7279278]
[1756675660263,1.7279278,205.03,204.96,72.05589535]
[1756675662467,1.7279278,205.01,204.96,67.95601419]
[1756675662667,119.9479278,205.01,204.96,67.95601419]
[1756675663867,119.9479278,205.01,204.97,7.83]
[1756675665069,118.22,205.01,204.96,60.49601419]
[1756675665272,118.22,205.01,204.97,1.7279278]
[1756675665468,118.22,205.01,204.98,7.83]
[1756675665773,118.22,205.01,204.97,1.7279278]
[1756675666370,118.22,205.01,204.98,7.83]
[1756675671468,118.22,205.01,204.97,9.5579278]
[1756675671972,118.22,205.01,204.97,1.7279278]
[1756675673473,118.22,205.01,204.97,9.5579278]
[1756675675376,1.7279278,205.03,204.97,9.5579278]
[1756675675578,71.36,205.02,204.97,9.5579278]
[1756675676078,71.36,205.02,204.97,7.83]
[1756675679180,71.36,205.02,204.96,62.22394199]
[1756675679380,71.36,205.02,204.98,1.7279278]
[1756675679580,71.36,205.02,204.98,9.5579278]
[1756675680778,71.36,205.02,204.98,1.7279278]
[1756675680983,71.36,205.02,204.99,7.83]
[1756675681184,71.36,205.02,204.98,9.5579278]
[1756675682386,1.7279278,205.04,204.98,9.5579278]
[1756675682585,118.22,205.03,204.98,9.5579278]
[1756675683687,1.7279278,205.04,204.98,9.5579278]
[1756675683985,118.22,205.03,204.98,9.5579278]
[1756675689991,118.22,205.03,204.96,60.49601419]
[1756675690184,1.7279278,205.02,204.96,1.7279278]
[1756675692290,1.7279278,205.02,204.95,7.88]
[1756675694196,1.7279278,205.02,204.95,11.97988116]
[1756675699296,1.7279278,205.02,204.96,4.09988116]
[1756675700496,1.7279278,205.02,204.96,11.97988116]
[1756675701096,118.2,205.01,204.96,11.97988116]
[1756675701394,118.2,205.01,204.96,4.09988116]
[1756675701596,118.2,205.01,204.97,7.88]
[1756675703098,1.7279278,205.02,204.97,7.88]
[1756675703399,118.2,205.01,204.97,7.88]
[1756675705399,118.2,205.01,204.96,4.09988116]
[1756675705599,1.7279278,205.0,204.95,4.09988116]
[1756675705900,1.7279278,205.0,204.95,11.97988116]
[1756675706101,1.7279278,205.0,204.94,4.09988116]
[1756675706299,1.7279278,205.0,204.94,11.97988116]
[1756675710702,1.7279278,205.0,204.94,5.82780896]
[1756675710902,1.7279278,205.0,204.95,7.88]
[1756675711106,1.7279278,205.0,204.94,5.82780896]
[1756675712404,1.7279278,205.0,204.95,7.88]
[1756675712707,1.7279278,205.0,204.94,5.82780896]
[1756675713100,1.7279278,205.0,204.95,7.88]
[1756675713303,1.7279278,205.0,204.94,5.82780896]
[1756675713501,1.7279278,205.0,204.95,7.88]
[1756675714106,1.7279278,205.0,204.94,5.82780896]
[1756675714305,1.7279278,205.0,204.95,7.88]
[1756675714802,119.9079278,205.0,204.96,7.88]
[1756675715008,119.9079278,205.0,204.95,4.09988116]
[1756675715306,119.9079278,205.0,204.96,7.88]
[1756675715507,119.9079278,205.0,204.95,4.09988116]
[1756675715508,119.9079278,205.0,204.95,7.88]
[1756675715699,119.9079278,205.0,204.94,5.82780896]
[1756675715900,119.9079278,205.0,204.95,7.88]
[1756675716102,119.9079278,205.0,204.94,5.82780896]
[1756675716506,119.9079278,205.0,204.95,7.88]
[1756675717205,119.9079278,205.0,204.94,5.82780896]
[1756675718607,119.9079278,205.0,204.95,7.36]
[1756675718807,119.9079278,205.0,204.94,5.8294471]
[1756675719007,119.9079278,205.0,204.95,7.36]
[1756675719709,119.9079278,205.0,204.94,5.8294471]
[1756675719911,119.9079278,205.0,204.95,7.36]
[1756675720410,119.9079278,205.0,204.94,5.8294471]
[1756675720910,119.9079278,205.0,204.95,7.36]
[1756675721710,119.9079278,205.0,204.94,5.8294471]
[1756675721910,119.9079278,205.0,204.95,7.36]
[1756675722411,119.9079278,205.0,204.94,5.8294471]
[1756675723106,119.9079278,205.0,204.95,7.36]
[1756675723406,119.9079278,205.0,204.94,5.8294471]
[1756675723711,119.9079278,205.0,204.95,7.36]
[1756675724111,119.9079278,205.0,204.94,5.8294471]
[1756675724714,119.9079278,205.0,204.94,13.1894471]
[1756675727112,119.9079278,205.0,204.95,4.1015193]
[1756675727312,119.9079278,205.0,204.95,11.4615193]
[1756675736123,119.9079278,205.0,204.95,4.1015193]
[1756675736423,119.9079278,205.0,204.95,11.4615193]
[1756675737222,119.9079278,205.0,204.95,4.1015193]
[1756675737426,119.9079278,205.0,204.96,7.36]
[1756675742022,1.7279278,205.0,204.96,7.36]
[1756675748034,0.02,204.99,204.96,7.36]
[1756675748333,1.7279278,205.0,204.96,7.36]
[1756675748533,0.02,204.99,204.96,7.36]
[1756675748736,0.02,204.99,204.94,4.1015193]
[1756675748737,1.7279278,205.0,204.94,4.1015193]
[1756675748928,0.02,204.99,204.94,4.1015193]
[1756675749130,1.7279278,204.96,204.92,4.1015193]
[1756675749325,0.02,204.95,204.93,7.53]
[1756675753438,1.7279278,204.96,204.92,4.1015193]
[1756675753633,1.7479278,204.96,204.93,7.53]
[1756675753839,1.7479278,204.96,204.92,4.1015193]
[1756675754040,1.7479278,204.96,204.93,7.53]
[1756675754242,1.7479278,204.96,204.92,4.1015193]